fUSD/lending_fUSD_20250611
["ID","MTS","AMOUNT","RATE_DAILY","PERIOD"]
[365372280,1749623432375,-491.04,0.00016335,2]
[365372282,1749623432385,-496.96,0.00016335,2]
[365372284,1749623432394,-305.83,0.00016335,2]
[365372285,1749623432403,-495.86,0.00016336,2]
[365372286,1749623432412,-497.45,0.00016336,2]
[365372287,1749623432421,-504.39,0.00016336,2]
[365372288,1749623432430,-509.29,0.00016336,2]
[365372289,1749623432439,-498.16,0.00016336,2]
[365372290,1749623432448,-300.84,0.00016336,2]
[365372291,1749623432457,-490.22,0.00016336,2]
[365372292,1749623432467,-497.91,0.00016336,2]
[365372293,1749623432476,-501.77,0.00016336,2]
[365372294,1749623432485,-502.44,0.00016336,2]
[365372295,1749623432494,-493.47,0.00016336,2]
[365372296,1749623432503,-508.99,0.00016336,2]
[365372297,1749623432512,-502.12,0.00016336,2]
[365372298,1749623432521,-500.91,0.00016336,2]
[365372299,1749623432530,-494.02,0.00016336,2]
[365372300,1749623432539,-305.65,0.00016336,2]
[365372301,1749623432548,-495.95,0.00016336,2]
[365372302,1749623432558,-302.39,0.00016336,2]
[365372303,1749623432567,-505.27,0.00016336,2]
[365372304,1749623432578,-496.17,0.00016336,2]
[365372305,1749623432587,-507.99,0.00016336,2]
[365372306,1749623432596,-301.31,0.00016336,2]
[365372307,1749623432605,-493.23,0.00016336,2]
[365372308,1749623432614,-491.42,0.00016336,2]
[365372309,1749623432624,-509.48,0.00016336,2]
[365372310,1749623432634,-305.29,0.00016336,2]
[365372311,1749623432643,-491.62,0.00016336,2]
[365372312,1749623432654,-509.32,0.00016336,2]
[365372313,1749623432666,-305.88,0.00016336,2]
[365372314,1749623432675,-502.47,0.00016336,2]
[365372315,1749623432685,-507.15,0.00016337,2]
[365372316,1749623432695,-301.22,0.00016337,2]
[365372317,1749623432705,-494.01,0.00016337,2]
[365372318,1749623432714,-494.47,0.00016337,2]
[365372319,1749623432723,-507.54,0.00016337,2]
[365372320,1749623432733,-304.49,0.00016337,2]
[365372321,1749623432744,-504.64,0.00016337,2]
[365372322,1749623432753,-507.86,0.00016337,2]
[365372323,1749623432763,-498.45,0.00016337,2]
[365372324,1749623432773,-302.38,0.00016337,2]
[365372325,1749623432785,-504.44,0.00016337,2]
[365372326,1749623432794,-491.62,0.00016337,2]
[365372327,1749623432803,-300.3,0.00016337,2]
[365372328,1749623432814,-490.63,0.00016337,2]
[365372329,1749623432824,-498.64,0.00016337,2]
[365372330,1749623432834,-302.19,0.00016337,2]
[365372331,1749623432843,-301.66,0.00016337,2]
[365372332,1749623432853,-490.05,0.00016337,2]
[365372333,1749623432862,-301.86,0.00016337,2]
[365372334,1749623432871,-300.49,0.00016337,2]
[365372335,1749623432881,-500.0,0.00016337,2]
[365372336,1749623432891,-354.74535554,0.00016337,2]
[365372337,1749623432900,-629.50962948,0.00016337,2]
[365372338,1749623432910,-262.24963904,0.00016337,2]
[365372339,1749623432920,-162.13293793,0.00016337,2]
[365372340,1749623432930,-499.36,0.00016337,2]
[365372341,1749623432940,-496.64,0.00016337,2]
[365372342,1749623432950,-498.93,0.00016337,2]
[365372343,1749623432960,-301.3,0.00016337,2]
[365372344,1749623432969,-496.07,0.00016338,2]
[365372345,1749623432979,-508.53,0.00016338,2]
[365372346,1749623432990,-1087.89394852,0.00016338,2]
[365372347,1749623433000,-305.02,0.00016338,2]
[365372348,1749623433010,-304.68,0.00016338,2]
[365372349,1749623433019,-302.22,0.00016338,2]
[365372350,1749623433029,-303.94,0.00016338,2]
[365372351,1749623433039,-39021.71342042,0.00016338,2]
[365372352,1749623433051,-2391.7246326,0.00016338,2]
[365372353,1749623433063,-956.18309289,0.00016338,2]
[365372354,1749623433076,-2958.72048312,0.00016338,2]
[365372355,1749623433088,-16491.02,0.00016338,2]
[365372356,1749623433100,-9426.09210203,0.00016338,2]
[365372360,1749623438193,-373.53482846,0.00016338,2]
[365372361,1749623438508,-7350.71524048,0.00016338,2]
[365372362,1749623438518,-304.49,0.00016338,2]
[365372363,1749623438527,-498.37,0.00016338,2]
[365372364,1749623438536,-303.46,0.00016338,2]
[365372365,1749623438546,-496.45,0.00016338,2]
[365372366,1749623438555,-501.25,0.00016338,2]
[365372367,1749623438564,-498.56,0.00016338,2]
[365372368,1749623438574,-300.35,0.00016338,2]
[365372369,1749623438584,-508.23,0.00016338,2]
[365372370,1749623438594,-492.31,0.00016338,2]
[365372371,1749623438604,-305.88,0.00016338,2]
[365372372,1749623438613,-497.97,0.00016338,2]
[365372373,1749623438623,-503.27,0.00016338,2]
[365372374,1749623438633,-400.4644,0.00016338,2]
[365372375,1749623438642,-2673.0382,0.00016338,2]
[365372376,1749623438652,-418.47781518,0.00016388,4]
[365372377,1749623438667,-181.52218482,0.00016388,4]
[365372378,1749623438676,-216.69202186,0.00016438,2]
[365372792,1749623442970,-325.32562975,0.00016438,2]
[365372793,1749623442980,-460.0,0.00016438,2]
[365372795,1749623442990,-460.0,0.00016438,2]
[365372797,1749623443001,-460.0,0.00016438,2]
[365372799,1749623443010,-1481.994328,0.00016438,2]
[365372801,1749623443020,-153.514523,0.00016438,2]
[365372803,1749623443029,-666.0,0.00016553,2]
[365372805,1749623443039,-1000.0,0.00016636,2]
[365372808,1749623443048,-2775.65,0.00016693,2]
[365372811,1749623443058,-150.0,0.00016701,7]
[365372815,1749623443067,-165.63,0.00016719,2]
[365372818,1749623443077,-1087.8939485,0.00016734,2]
[365372820,1749623443087,-150.0,0.00016931,2]
[365372824,1749623443097,-150.0,0.00016958,2]
[365372826,1749623443106,-200.0,0.00016986,2]
[365372829,1749623443116,-479.58,0.00016991,2]
[365372832,1749623443125,-833.29909032,0.00017074,2]
[365372835,1749623443135,-150.0,0.00017115,2]
[365372837,1749623443145,-1087.8939485,0.0001713,2]
[365372839,1749623443155,-1500.0,0.00017246,2]
[365372841,1749623443165,-250.0,0.00017267,2]
[365372843,1749623443174,-1087.8939485,0.00017525,2]
[365372845,1749623443184,-23900.0,0.00017541,2]
[365372847,1749623443194,-152.0,0.00017568,4]
[365372849,1749623443202,-420.0,0.00017851,2]
[365372851,1749623443212,-160.25061251,0.000179,2]
[365372853,1749623443221,-1087.8939485,0.00017921,2]
[365372855,1749623443231,-160.25061248,0.00017954,2]
[365372857,1749623443240,-250.0,0.00017966,2]
[365372859,1749623443249,-300.0,0.00017966,2]
[365372861,1749623443258,-250.0,0.00017966,2]
[365372863,1749623443268,-600.0,0.00017972,4]
[365372865,1749623443277,-154.84,0.00018,2]
[365372867,1749623443286,-1087.8939485,0.00018317,2]
[365372869,1749623443295,-207.4,0.0001841,2]
[365372871,1749623443304,-151.0,0.0001841,2]
[365372873,1749623443313,-160.25061248,0.0001844,2]
[365372875,1749623443322,-204.0,0.00018533,2]
[365372877,1749623443331,-1087.8939485,0.00018713,2]
[365372879,1749623443340,-1000.0,0.00018716,2]
[365372881,1749623443350,-504.0,0.00018877,2]
[365372883,1749623443359,-160.25061248,0.00018927,2]
[365372885,1749623443368,-3234.92224285,0.00018955,2]
[365372887,1749623443378,-406.8648339,0.00018999,2]
[365372889,1749623443387,-250.0,0.00019,2]
[365372891,1749623443397,-1087.8939485,0.00019108,2]
[365372893,1749623443407,-152.0,0.00019176,5]
[365372895,1749623443416,-430.61544655,0.00019178,2]
[365372897,1749623443426,-151.0,0.00019178,2]
[365372899,1749623443435,-152.72,0.00019178,2]
[365372901,1749623443446,-479.58,0.00019255,2]
[365372903,1749623443455,-154.84,0.00019339,2]
[365372905,1749623443464,-9999.99,0.00019339,2]
[365372907,1749623443473,-299.99,0.00019339,7]
[365372909,1749623443483,-9999.99,0.00019339,2]
[365372911,1749623443493,-408.03,0.00019339,2]
[365372913,1749623443502,-1462.87,0.00019339,2]
[365372915,1749623443511,-150.99,0.00019339,2]
[365372917,1749623443520,-150.99,0.00019339,2]
[365372919,1749623443529,-9999.99,0.00019339,2]
[365372921,1749623443538,-3681.31,0.00019339,2]
[365372923,1749623443548,-999.99,0.00019339,2]
[365372925,1749623443558,-1136.89,0.00019339,2]
[365372927,1749623443567,-401.66,0.0001939,2]
[365372929,1749623443576,-22783.47362851,0.000194,2]
[365372931,1749623443586,-160.25061248,0.00019413,2]
[365372933,1749623443595,-440.036,0.00019432,2]
[365372935,1749623443605,-1087.8939485,0.00019504,2]
[365372937,1749623443614,-587.0,0.00019511,2]
[365372939,1749623443623,-35000.0,0.000197,2]
[365372940,1749623443632,-174.25513705,0.00019713,2]
[365372943,1749623443642,-215.0738,0.00019779,2]
[365372944,1749623443651,-156.587,0.00019779,2]
[365372946,1749623443665,-151.0,0.000198,2]
[365372948,1749623443675,-151.0,0.000198,2]
[365372950,1749623443684,-8784.03,0.000198,2]
[365372952,1749623443693,-151.0,0.000198,2]
[365372954,1749623443703,-151.0,0.000198,2]
[365372956,1749623443712,-151.0,0.000198,2]
[365372958,1749623443721,-926.0,0.00019813,2]
[365372960,1749623443730,-1274.0,0.00019813,2]
[365372962,1749623443740,-203.055,0.00019813,2]
[365372964,1749623443750,-589.0,0.00019813,2]
[365372966,1749623443760,-1255.0,0.00019813,2]
[365372968,1749623443769,-3289.474,0.00019813,2]
[365372970,1749623443778,-500.0,0.00019839,2]
[365372972,1749623443787,-1366.43847371,0.00019898,2]
[365372974,1749623443796,-30898.65884902,0.00019899,2]
[365372976,1749623443806,-762.4894412,0.000199,3]
[365372978,1749623443815,-1087.8939485,0.000199,2]
[365372980,1749623443824,-160.25061248,0.000199,2]
[365372982,1749623443834,-1687.88201173,0.00019911,2]
[365372984,1749623443843,-166.0,0.00019945,2]
[365372986,1749623443854,-166.0,0.00019945,2]
[365372988,1749623443863,-500.0,0.00019973,2]
[365372990,1749623443873,-1143.375216,0.00019986,2]
[365372992,1749623443883,-1461.8419482,0.00019986,2]
[365372994,1749623443893,-5176.8912235,0.00019986,2]
[365372996,1749623443903,-401.66,0.00019989,2]
[365372998,1749623443912,-167.74,0.0001999,2]
[365373000,1749623443921,-151.0,0.00019998,2]
[365373002,1749623443930,-151.0,0.00019998,2]
[365373003,1749623443939,-151.0,0.00019998,2]
[365373005,1749623443949,-151.0,0.00019998,2]
[365373007,1749623443959,-151.0,0.00019998,2]
[365373009,1749623443968,-371.91881365,0.00019998,2]
[365373011,1749623443977,-220.15635074,0.00019998,2]
[365373013,1749623443987,-172.62477829,0.00019998,2]
[365373015,1749623443996,-193.26768505,0.00019998,2]
[365373017,1749623444006,-184.76892454,0.00019998,2]
[365373019,1749623444015,-154.10944551,0.00019998,2]
[365373021,1749623444024,-1079.88379704,0.00019999,5]
[365373023,1749623444034,-1079.88379705,0.00019999,5]
[365373025,1749623444043,-92051.97006181,0.00019999,7]
[365373028,1749623444055,-89793.48375164,0.00019999,7]
[365373030,1749623444065,-578.07560636,0.00019999,2]
[365373032,1749623444074,-1101.55414014,0.00019999,5]
[365373034,1749623444085,-1101.55414014,0.00019999,5]
[365373035,1749623444094,-1101.55414013,0.00019999,5]
[365373038,1749623444104,-154.612333,0.00019999,2]
[365373040,1749623444113,-151.0,0.00019999,2]
[365373041,1749623444123,-151.0,0.00019999,2]
[365373043,1749623444131,-151.0,0.00019999,2]
[365373045,1749623444141,-151.0,0.00019999,2]
[365373047,1749623444151,-151.0,0.00019999,2]
[365373049,1749623444160,-151.0,0.00019999,2]
[365373051,1749623444169,-1000.0,0.00019999,2]
[365373053,1749623444179,-500.0,0.00019999,2]
[365373055,1749623444188,-150.0,0.00019999,2]
[365373057,1749623444197,-7019.75522995,0.00019999,2]
[365373059,1749623444207,-833.29909032,0.00019999,7]
[365373061,1749623444216,-580.0,0.0002,2]
[365373063,1749623444225,-324064.01507399,0.0002,3]
[365373065,1749623444234,-833.29909032,0.0002,3]
[365373067,1749623444243,-11435.76487449,0.0002,3]
[365373069,1749623444252,-247491.97124287,0.0002,2]
[365373213,1749623593524,244.0,0.00024657,120]
[365373214,1749623604068,222.0,0.0002,30]
[365373217,1749624372059,205.0,0.00015533,2]
[365373218,1749624427110,-512.14988324,0.00016164,2]
[365373219,1749624427133,-500.0,0.00016164,2]
[365373220,1749624427157,-500.0,0.00016164,2]
[365373221,1749624427179,-178.39859639,0.00016236,2]
[365373222,1749624427202,-300.0,0.00016335,2]
[365373223,1749624427225,-300.0,0.00016336,2]
[365373224,1749624427252,-1200.0,0.00016336,2]
[365373225,1749624427283,-505.0,0.00016336,2]
[365373226,1749624427303,-239.0123274,0.00016337,2]
[365373227,1749624427328,-498.48,0.00016337,2]
[365373228,1749624427349,-131.12205322,0.00016337,2]
[365373229,1749624429112,-171.42794678,0.00016337,2]
[365373230,1749624429134,-505.77,0.00016337,2]
[365373231,1749624429156,-500.18,0.00016337,2]
[365373232,1749624429176,-334.06634348,0.00016337,2]
[365373233,1749624434347,1333.0,0.00024066,120]
[365373234,1749624448099,-163.87365652,0.00016337,2]
[365373235,1749624448121,-303.16,0.00016337,2]
[365373236,1749624448143,-218.01500451,0.00016337,2]
[365373237,1749624491863,250.0,0.00015533,2]
[365373245,1749624525701,-173.86162,0.00016254,2]
[365373246,1749624525728,-301.02,0.00016336,2]
[365373247,1749624525758,-300.0,0.00016336,2]
[365373248,1749624525784,-507.87,0.00016336,2]
[365373249,1749624525810,-505.84,0.00016336,2]
[365373250,1749624525837,-300.38,0.00016336,2]
[365373251,1749624525863,-498.62,0.00016336,2]
[365373252,1749624525889,-505.14,0.00016336,2]
[365373253,1749624525916,-276.27499549,0.00016337,2]
[365373254,1749624525943,-495.88,0.00016337,2]
[365373255,1749624525969,-305.22,0.00016337,2]
[365373256,1749624526000,-507.96,0.00016337,2]
[365373257,1749624526028,-503.4,0.00016337,2]
[365373258,1749624526055,-305.31,0.00016337,2]
[365373259,1749624526083,-508.12,0.00016337,2]
[365373260,1749624526109,-500.62,0.00016337,2]
[365373261,1749624526136,-506.29,0.00016337,2]
[365373262,1749624526163,-305.68,0.00016337,2]
[365373263,1749624526190,-500.47,0.00016337,2]
[365373264,1749624526216,-506.61,0.00016337,2]
[365373265,1749624526242,-300.26,0.00016337,2]
[365373266,1749624526267,-497.26,0.00016337,2]
[365373267,1749624526293,-506.62,0.00016337,2]
[365373268,1749624526318,-495.83,0.00016337,2]
[365373269,1749624526342,-302.57,0.00016337,2]
[365373270,1749624526368,-504.09,0.00016337,2]
[365373271,1749624526393,-495.07,0.00016337,2]
[365373272,1749624526418,-301.15,0.00016337,2]
[365373273,1749624526446,-509.7,0.00016337,2]
[365373274,1749624526473,-496.6,0.00016337,2]
[365373275,1749624526497,-300.0,0.00016337,2]
[365373276,1749624526524,-303.03,0.00016337,2]
[365373277,1749624526548,-504.2,0.00016337,2]
[365373278,1749624526574,-493.75,0.00016337,2]
[365373279,1749624526598,-304.58,0.00016337,2]
[365373280,1749624526622,-499.75,0.00016338,2]
[365373281,1749624526647,-509.8,0.00016338,2]
[365373282,1749624526672,-504.48,0.00016338,2]
[365373283,1749624526696,-503.76,0.00016338,2]
[365373284,1749624526721,-502.96,0.00016338,2]
[365373285,1749624526746,-504.79,0.00016338,2]
[365373286,1749624526772,-151.92,0.00016338,2]
[365373287,1749624526796,-509.45,0.00016338,2]
[365373288,1749624526820,-301.3,0.00016338,2]
[365373289,1749624526845,-500.9,0.00016338,2]
[365373290,1749624526869,-1000.0,0.00016338,2]
[365373291,1749624526894,-505.43,0.00016338,2]
[365373292,1749624526918,-507.45,0.00016338,2]
[365373293,1749624526942,-301.81,0.00016338,2]
[365373294,1749624526967,-490.69,0.00016338,2]
[365373295,1749624526994,-507.78,0.00016338,2]
[365373296,1749624527021,-301.26,0.00016338,2]
[365373297,1749624527049,-491.61,0.00016338,2]
[365373298,1749624527076,-496.5,0.00016338,2]
[365373299,1749624527102,-507.56,0.00016338,2]
[365373300,1749624527127,-303.46,0.00016338,2]
[365373301,1749624527153,-509.57,0.00016338,2]
[365373302,1749624527178,-491.16,0.00016338,2]
[365373303,1749624527203,-495.65,0.00016338,2]
[365373304,1749624527228,-196.98874,0.00016438,2]
[365373305,1749624527253,-178.39859639,0.00016932,2]
[365373307,1749624533766,153.88,0.00013699,2]
[365373308,1749624547233,681.55402565,0.00024657,120]
[365373310,1749624572856,208.02,0.00014,2]
[365373313,1749624621467,581.86,0.00015625,2]
[365373320,1749624631859,-407.114424,0.00016164,2]
[365373321,1749624631871,-92.885576,0.00016164,2]
[365373322,1749624631880,-314.114424,0.00016452,2]
[365373323,1749624631892,-176.865576,0.00016452,2]
[365373324,1749624631901,-500.79,0.00016452,2]
[365373325,1749624631910,-508.37,0.00016452,2]
[365373326,1749624631919,-300.0,0.00016932,2]
[365373327,1749624631928,-250.0,0.00016932,2]
[365373328,1749624631937,-150.71,0.00016932,2]
[365373329,1749624631946,-174.65917024,0.00016932,2]
[365373330,1749624631958,-328.08082976,0.00016932,2]
[365373331,1749624631967,-152.24,0.00016932,2]
[365373332,1749624631976,-302.03,0.00016932,2]
[365373333,1749624631985,-500.8,0.00016932,2]
[365373334,1749624631994,-58.86823709,0.00016932,2]
[365373335,1749624632005,-432.03176291,0.00016932,2]
[365373336,1749624632014,-303.02,0.00016933,2]
[365373337,1749624632028,-504.99,0.00016936,2]
[365373338,1749624632037,-507.21,0.00016936,2]
[365373339,1749624632046,-504.54,0.00016938,2]
[365373340,1749624632055,-500.08,0.00016938,2]
[365373341,1749624632065,-302.19,0.00016939,2]
[365373342,1749624632075,-304.28,0.00016943,2]
[365373343,1749624632084,-500.27,0.00016953,2]
[365373344,1749624632094,-490.35,0.00016953,2]
[365373345,1749624632104,-881.72135583,0.00016965,2]
[365373346,1749624632135,-318.27864417,0.00016965,2]
[365373348,1749624632144,-314.34392193,0.00016966,2]
[365373350,1749624632156,-183.98607807,0.00016966,2]
[365373352,1749624632165,-99.05853133,0.00016966,2]
[365373354,1749624632176,-405.13146867,0.00016966,2]
[365373356,1749624632186,-151.79,0.00017015,2]
[365373358,1749624632196,-205.0,0.00017015,3]
[365373360,1749624632206,-300.0,0.00017029,2]
[365373362,1749624632215,-185.19645261,0.0001703,2]
[365373363,1749624632230,-120.10354739,0.0001703,2]
[365373364,1749624632240,-491.82,0.00017059,2]
[365373365,1749624632249,-491.57,0.00017059,2]
[365373366,1749624632258,-490.38,0.00017078,2]
[365373367,1749624632267,-285.32170579,0.00017078,2]
[365373368,1749624632279,-208.86829421,0.00017078,2]
[365373369,1749624632288,-833.29909032,0.00017093,2]
[365373370,1749624632297,-7.2763608,0.00017294,2]
[365373371,1749624632343,-844.25481906,0.00017294,2]
[365373372,1749624632353,-300.0,0.0001748,2]
[365373373,1749624632362,-3466.69118962,0.0001753,2]
[365373374,1749624632374,-935.98215856,0.0001753,2]
[365373375,1749624632385,-2367.15332242,0.0001753,2]
[365373376,1749624632412,-434.94,0.0001753,2]
[365373377,1749624632422,-471.36209876,0.0001753,2]
[365373379,1749624632434,-27889.91123064,0.0001753,2]
[365373381,1749624632444,-1729.76,0.00017601,2]
[365373383,1749624632454,-178.39859639,0.00017628,2]
[365373385,1749624632463,-151.0,0.00017691,2]
[365373387,1749624632472,-151.0,0.00017691,2]
[365373389,1749624632482,-127.79608112,0.00017691,2]
[365373392,1749624632493,-23.20391888,0.00017691,2]
[365373393,1749624632503,-151.0,0.00017691,2]
[365373394,1749624632513,-151.0,0.00017691,2]
[365373395,1749624632523,-151.0,0.00017691,2]
[365373396,1749624632532,-151.0,0.00017691,2]
[365373397,1749624632542,-151.0,0.00017691,2]
[365373398,1749624632552,-151.0,0.00017691,2]
[365373399,1749624632561,-151.0,0.00017691,2]
[365373400,1749624632571,-151.0,0.00017691,2]
[365373401,1749624632580,-245.0,0.00017691,2]
[365373402,1749624632589,-384.33984892,0.00017701,2]
[365373403,1749624632601,-1514.63699988,0.00017701,2]
[365373404,1749624632611,-150.0,0.00017701,2]
[365373405,1749624632622,-499.99,0.00017728,2]
[365373406,1749624632632,-772.75150554,0.00017728,2]
[365373407,1749624632643,-594.95549248,0.00017728,2]
[365373408,1749624632654,-515.28991249,0.00017728,2]
[365373409,1749624632665,-590.00001,0.00017728,2]
[365373410,1749624632676,-2775.0,0.00017728,2]
[365373416,1749624637842,-468.40396298,0.00016452,2]
[365373417,1749624637853,-40.80603702,0.00016452,2]
[365373418,1749624637865,-4751.99307949,0.00017728,2]
[365373419,1749624637875,-4076.72444336,0.00017728,2]
[365373420,1749624637887,-5923.26555664,0.00017728,2]
[365373421,1749624637896,-999.99,0.00017728,2]
[365373422,1749624637906,-150.99,0.00017728,2]
[365373423,1749624637916,-150.99,0.00017728,2]
[365373424,1749624637926,-300.0,0.0001778,2]
[365373425,1749624637936,-600.0,0.0001778,4]
[365373426,1749624637946,-1000.0,0.00017821,2]
[365373427,1749624637956,-150.0,0.00017847,2]
[365373428,1749624637966,-420.0,0.00017854,2]
[365373429,1749624637975,-765.478388,0.00017861,2]
[365373430,1749624638013,-876.49937008,0.00017861,2]
[365373431,1749624638030,-424.538785,0.00017861,2]
[365373432,1749624638042,-3937.70345692,0.00017861,2]
[365373433,1749624638051,-538.78,0.0001788,2]
[365373434,1749624638061,-581.86,0.00017888,2]
[365373435,1749624638071,-209.03412786,0.000179,2]
[365373436,1749624638080,-150.0,0.00017933,7]
[365373437,1749624638090,-165.44,0.00017941,2]
[365373438,1749624638101,-666.0,0.00017957,2]
[365373439,1749624638112,-250.0,0.00017971,2]
[365373440,1749624638122,-300.0,0.00017971,2]
[365373441,1749624638132,-1507.87,0.00017977,2]
[365373442,1749624638142,-388.64400946,0.00017994,2]
[365373443,1749624638154,-111.35599054,0.00017994,2]
[365373444,1749624638163,-269.58606187,0.00017994,2]
[365373445,1749624638191,-230.41393813,0.00017994,2]
[365373446,1749624638200,-505.32353976,0.00017994,2]
[365373447,1749624638210,-625.34555432,0.00017994,2]
[365373448,1749624638220,-500.0,0.00017994,2]
[365373449,1749624638230,-500.0,0.00017994,2]
[365373450,1749624638239,-500.0,0.00017994,2]
[365373451,1749624638248,-221.62129797,0.00017994,2]
[365373452,1749624638258,-12683.16473477,0.00017995,2]
[365373453,1749624638270,-539.269297,0.00017995,2]
[365373454,1749624638282,-399.85892728,0.00017995,2]
[365373456,1749624638294,-1142.899995,0.00017995,2]
[365373643,1749624640264,-453.8784,0.00017995,2]
[365373657,1749624640390,-8680.92864595,0.00017995,2]
[365373659,1749624640399,-150.36,0.00018,2]
[365373661,1749624640409,-300.0,0.00018028,2]
[365373663,1749624640419,-21714.07,0.00018352,2]
[365373665,1749624640428,-250.0,0.00018385,2]
[365373667,1749624640438,-1957.856,0.0001841,2]
[365373669,1749624640447,-207.4,0.0001841,2]
[365373671,1749624640456,-500.0,0.0001841,2]
[365373673,1749624640465,-500.0,0.0001841,2]
[365373675,1749624640475,-500.0,0.0001841,2]
[365373677,1749624640484,-500.0,0.0001841,2]
[365373679,1749624640493,-500.0,0.0001841,2]
[365373681,1749624640502,-574.58844348,0.0001841,2]
[365373683,1749624640511,-151.0,0.0001841,2]
[365373685,1749624640520,-211.42,0.00018438,2]
[365373687,1749624640530,-2030.296672,0.00018465,2]
[365373689,1749624640539,-205.0,0.00018498,5]
[365373691,1749624640548,-2105.41764886,0.0001852,2]
[365373693,1749624640557,-2183.31810187,0.00018575,2]
[365373695,1749624640567,-300.0,0.00018576,2]
[365373697,1749624640577,-1200.0,0.00018622,2]
[365373699,1749624640586,-250.0,0.00018625,2]
[365373700,1749624640595,-300.0,0.00018625,2]
[365373702,1749624640605,-306.24487163,0.0001863,2]
[365373704,1749624640615,-732.18815307,0.00018666,2]
[365373707,1749624640625,-626.93,0.00018886,3]
[365373709,1749624640635,-500.0,0.00018904,2]
[365373710,1749624640645,-500.0,0.00018904,2]
[365373712,1749624640654,-164.65,0.00018935,2]
[365373715,1749624640663,-250.0,0.00019,2]
[365373716,1749624640673,-300.0,0.00019124,2]
[365373718,1749624640682,-151.0,0.00019178,2]
[365373720,1749624640692,-170.13,0.00019178,2]
[365373722,1749624640701,-150.1,0.00019407,2]
[365373724,1749624640710,-150.0,0.00019407,2]
[365373726,1749624640719,-301.13,0.00019407,2]
[365373728,1749624640728,-150.0,0.00019407,2]
[365373731,1749624640737,-150.0,0.00019407,2]
[365373733,1749624640747,-160.01070883,0.00019499,2]
[365373734,1749624640756,-480.0,0.00019513,2]
[365373736,1749624640765,-883.852873,0.00019599,2]
[365373738,1749624640775,-3990.1487,0.000196,2]
[365373741,1749624640785,-352.028,0.00019671,2]
[365373743,1749624640795,-300.0,0.00019672,2]
[365373745,1749624640804,-277.38,0.00019722,2]
[365373746,1749624640814,-215.0738,0.00019779,2]
[365373748,1749624640823,-156.587,0.00019779,2]
[365373750,1749624640832,-11887.8,0.000198,2]
[365373752,1749624640841,-1796.945,0.00019813,2]
[365373754,1749624640851,-853.0,0.00019813,2]
[365373756,1749624640860,-155.0,0.00019813,2]
[365373759,1749624640870,-4084.0,0.00019813,2]
[365373761,1749624640879,-250.111,0.00019813,2]
[365373763,1749624640888,-500.0,0.00019839,2]
[365373765,1749624640897,-164.74824221,0.00019855,2]
[365373767,1749624640906,-164.74824215,0.00019861,2]
[365373769,1749624640915,-164.74824215,0.00019866,2]
[365373771,1749624640925,-164.74824215,0.00019872,2]
[365373773,1749624640934,-164.74824215,0.00019878,2]
[365373775,1749624640943,-150.0,0.00019882,4]
[365373777,1749624640953,-164.74824215,0.00019883,2]
[365373779,1749624640962,-164.74824215,0.00019889,2]
[365373781,1749624640971,-388.64,0.0001989,2]
[365373783,1749624640981,-388.64,0.0001989,2]
[365373785,1749624640990,-164.74824215,0.00019894,2]
[365373787,1749624640999,-1000.0,0.00019895,2]